[Event "Titled Tuesday Blitz June 13 Early 2023"]
[White "Kvaloy, Aksel Bu"]
[Black "Swiercz, Dariusz"]
[WhiteFideId "1528815"]
[BlackFideId "1126881"]
[WhiteElo "2318"]
[BlackElo "2620"]
[Result "0-1"]
[Round "2"]
[TimeControl "180+2"]
[Date "2023.06.13"]
[WhiteClock "0:00:01"]
[BlackClock "0:00:07"]
[Board "31"]

1. e4 {[%clk 0:03:00]}  c5 {[%clk 0:03:00]} 2. Nf3 {[%clk 0:03:00]}  Nc6 {[%clk 0:03:00]} 3. d4 {[%clk 0:03:00]}  cxd4 {[%clk 0:03:01]} 4. Nxd4 {[%clk 0:03:01]}  e5 {[%clk 0:03:02]} 5. Nb5 {[%clk 0:03:00]}  d6 {[%clk 0:03:02]} 6. N1c3 {[%clk 0:02:57]}  a6 {[%clk 0:03:02]} 7. Na3 {[%clk 0:02:57]}  Be6 {[%clk 0:03:02]} 8. Nc4 {[%clk 0:02:56]}  Rb8 {[%clk 0:02:59]} 9. Ne3 {[%clk 0:02:54]}  Nf6 {[%clk 0:02:59]} 10. Ned5 {[%clk 0:02:53]}  Bxd5 {[%clk 0:02:47]} 11. exd5 {[%clk 0:02:45]}  Nd4 {[%clk 0:02:40]} 12. Be3 {[%clk 0:02:44]}  Nf5 {[%clk 0:02:40]} 13. Bd2 {[%clk 0:02:38]}  g6 {[%clk 0:02:37]} 14. Bd3 {[%clk 0:02:38]}  Ne7 {[%clk 0:02:32]} 15. O-O {[%clk 0:02:37]}  Bg7 {[%clk 0:02:33]} 16. f4 {[%clk 0:02:36]}  exf4 {[%clk 0:02:32]} 17. Bxf4 {[%clk 0:02:37]}  O-O {[%clk 0:02:29]} 18. Qf3 {[%clk 0:02:37]}  b5 {[%clk 0:02:10]} 19. Bg5 {[%clk 0:02:26]}  b4 {[%clk 0:02:04]} 20. Ne4 {[%clk 0:02:05]}  Nxe4 {[%clk 0:02:03]} 21. Qxe4 {[%clk 0:02:06]}  Be5 {[%clk 0:01:43]} 22. Rae1 {[%clk 0:02:01]}  Qc7 {[%clk 0:01:32]} 23. Qh4 {[%clk 0:01:59]}  Nxd5 {[%clk 0:01:27]} 24. Kh1 {[%clk 0:01:34]}  Qc5 {[%clk 0:01:11]} 25. Bh6 {[%clk 0:01:24]}  Bg7 {[%clk 0:00:46]} 26. Rf3 {[%clk 0:01:19]}  Rbe8 {[%clk 0:00:26]} 27. Ref1 {[%clk 0:01:17]}  Bxh6 {[%clk 0:00:26]} 28. Qxh6 {[%clk 0:01:17]}  Qd4 {[%clk 0:00:27]} 29. h4 {[%clk 0:00:34]}  Ne3 {[%clk 0:00:07]} 30. Rg1 {[%clk 0:00:11]}  Ng4 {[%clk 0:00:07]} 31. Qf4 {[%clk 0:00:09]}  Qxf4 {[%clk 0:00:04]} 32. Rxf4 {[%clk 0:00:10]}  Ne5 {[%clk 0:00:05]} 33. Rxb4 {[%clk 0:00:11]}  Rb8 {[%clk 0:00:05]} 34. Rxb8 {[%clk 0:00:09]}  Rxb8 {[%clk 0:00:05]} 35. b3 {[%clk 0:00:10]}  a5 {[%clk 0:00:06]} 36. Rd1 {[%clk 0:00:08]}  Kf8 {[%clk 0:00:07]} 37. Kg1 {[%clk 0:00:09]}  Ke7 {[%clk 0:00:07]} 38. Kf2 {[%clk 0:00:09]}  Rb4 {[%clk 0:00:08]} 39. g3 {[%clk 0:00:09]}  h6 {[%clk 0:00:07]} 40. Ke3 {[%clk 0:00:08]}  Rg4 {[%clk 0:00:06]} 41. Kf2 {[%clk 0:00:08]}  f5 {[%clk 0:00:06]} 42. Be2 {[%clk 0:00:08]}  Re4 {[%clk 0:00:06]} 43. Bf3 {[%clk 0:00:08]}  Rb4 {[%clk 0:00:06]} 44. a3 {[%clk 0:00:07]}  Rb8 {[%clk 0:00:06]} 45. Rd5 {[%clk 0:00:07]}  Rc8 {[%clk 0:00:05]} 46. c4 {[%clk 0:00:03]}  Rb8 {[%clk 0:00:05]} 47. Rxa5 {[%clk 0:00:02]}  Rxb3 {[%clk 0:00:05]} 48. Be2 {[%clk 0:00:02]}  Rb2 {[%clk 0:00:04]} 49. Ra7+ {[%clk 0:00:02]}  Kf6 {[%clk 0:00:04]} 50. Ke3 {[%clk 0:00:03]}  Rb3+ {[%clk 0:00:04]} 51. Kf2 {[%clk 0:00:03]}  g5 {[%clk 0:00:04]} 52. hxg5+ {[%clk 0:00:03]}  hxg5 {[%clk 0:00:05]} 53. a4 {[%clk 0:00:04]}  f4 {[%clk 0:00:06]} 54. gxf4 {[%clk 0:00:04]}  gxf4 {[%clk 0:00:06]} 55. Ra8 {[%clk 0:00:04]}  Rb2 {[%clk 0:00:05]} 56. Rf8+ {[%clk 0:00:05]}  Kg5 {[%clk 0:00:06]} 57. Rg8+ {[%clk 0:00:05]}  Kf5 {[%clk 0:00:06]} 58. Ke1 {[%clk 0:00:02]}  Ke4 {[%clk 0:00:06]} 59. a5 {[%clk 0:00:03]}  Ke3 {[%clk 0:00:06]} 60. Bd1 {[%clk 0:00:02]}  Rb1 {[%clk 0:00:07]} 61. Re8 {[%clk 0:00:01]}  f3 {[%clk 0:00:07]} 62. Kf1 {[%clk 0:00:01]}  Rxd1# {[%clk 0:00:07]} 0-1


[Site "https://www.chess.com"]

[Event "Titled Tuesday Blitz June 13 Early 2023"]
[White "ArtemDyachuk"]
[Black "Maksimovic, Bojan"]
[BlackFideId "14408120"]
[WhiteElo "2604"]
[BlackElo "2457"]
[Result "1-0"]
[Round "2"]
[TimeControl "180+2"]
[Date "2023.06.13"]
[WhiteClock "0:00:08"]
[BlackClock "0:00:00"]
[Board "33"]

1. Nf3 {[%clk 0:02:57]}  Nf6 {[%clk 0:03:00]} 2. c4 {[%clk 0:02:57]}  g6 {[%clk 0:03:00]} 3. g3 {[%clk 0:02:57]}  Bg7 {[%clk 0:03:00]} 4. Bg2 {[%clk 0:02:57]}  O-O {[%clk 0:03:01]} 5. O-O {[%clk 0:02:57]}  d6 {[%clk 0:03:01]} 6. Nc3 {[%clk 0:02:57]}  Nc6 {[%clk 0:03:00]} 7. Rb1 {[%clk 0:02:57]}  a5 {[%clk 0:02:54]} 8. a3 {[%clk 0:02:57]}  e5 {[%clk 0:02:53]} 9. b4 {[%clk 0:02:56]}  axb4 {[%clk 0:02:53]} 10. axb4 {[%clk 0:02:57]}  Re8 {[%clk 0:02:47]} 11. d3 {[%clk 0:02:51]}  h6 {[%clk 0:02:44]} 12. b5 {[%clk 0:02:46]}  Nd4 {[%clk 0:02:44]} 13. Nd2 {[%clk 0:02:45]}  c6 {[%clk 0:02:22]} 14. e3 {[%clk 0:02:36]}  Bg4 {[%clk 0:02:22]} 15. f3 {[%clk 0:02:33]}  Bf5 {[%clk 0:02:22]} 16. exd4 {[%clk 0:02:17]}  Bxd3 {[%clk 0:02:22]} 17. Rb3 {[%clk 0:01:56]}  Bxf1 {[%clk 0:01:53]} 18. Bxf1 {[%clk 0:01:52]}  exd4 {[%clk 0:01:53]} 19. Nce4 {[%clk 0:01:53]}  Nxe4 {[%clk 0:00:58]} 20. Nxe4 {[%clk 0:01:54]}  d5 {[%clk 0:00:58]} 21. cxd5 {[%clk 0:01:52]}  cxd5 {[%clk 0:00:41]} 22. Nf2 {[%clk 0:01:50]}  Qb6 {[%clk 0:00:37]} 23. Nd3 {[%clk 0:01:48]}  Rac8 {[%clk 0:00:37]} 24. Bd2 {[%clk 0:01:43]}  Rc4 {[%clk 0:00:34]} 25. Nf4 {[%clk 0:01:37]}  Qc5 {[%clk 0:00:25]} 26. Bd3 {[%clk 0:01:24]}  Rc3 {[%clk 0:00:23]} 27. Bxc3 {[%clk 0:01:16]}  dxc3+ {[%clk 0:00:23]} 28. Kg2 {[%clk 0:01:17]}  Re3 {[%clk 0:00:20]} 29. Bc2 {[%clk 0:01:11]}  h5 {[%clk 0:00:20]} 30. Nxd5 {[%clk 0:00:52]}  Re6 {[%clk 0:00:21]} 31. Nf4 {[%clk 0:00:49]}  Rd6 {[%clk 0:00:21]} 32. Nd3 {[%clk 0:00:44]}  Qe3 {[%clk 0:00:20]} 33. Rb1 {[%clk 0:00:35]}  h4 {[%clk 0:00:18]} 34. Ra1 {[%clk 0:00:26]}  Rd8 {[%clk 0:00:15]} 35. Ra4 {[%clk 0:00:19]}  Bf6 {[%clk 0:00:14]} 36. Re4 {[%clk 0:00:18]}  Qg5 {[%clk 0:00:12]} 37. Qe2 {[%clk 0:00:14]}  Kg7 {[%clk 0:00:12]} 38. Nf4 {[%clk 0:00:11]}  Qf5 {[%clk 0:00:11]} 39. Re3 {[%clk 0:00:10]}  Qc5 {[%clk 0:00:07]} 40. Rd3 {[%clk 0:00:10]}  Ra8 {[%clk 0:00:04]} 41. Rd7 {[%clk 0:00:08]}  Ra2 {[%clk 0:00:00]} 42. Ne6+ {[%clk 0:00:08]} 1-0


[Site "https://www.chess.com"]

[Event "Titled Tuesday Blitz June 13 Early 2023"]
[White "Mhango, Banele"]
[Black "Babazada, Khazar"]
[WhiteFideId "14327040"]
[BlackFideId "13413554"]
[WhiteElo "2204"]
[BlackElo "2369"]
[Result "0-1"]
[Round "2"]
[TimeControl "180+2"]
[Date "2023.06.13"]
[WhiteClock "0:01:15"]
[BlackClock "0:02:32"]
[Board "35"]

1. d4 {[%clk 0:03:00]}  Nf6 {[%clk 0:02:53]} 2. Nc3 {[%clk 0:03:01]}  d5 {[%clk 0:02:51]} 3. Bf4 {[%clk 0:03:01]}  Bf5 {[%clk 0:02:46]} 4. e3 {[%clk 0:03:01]}  e6 {[%clk 0:02:46]} 5. f3 {[%clk 0:03:01]}  h6 {[%clk 0:02:46]} 6. g4 {[%clk 0:03:00]}  Bh7 {[%clk 0:02:46]} 7. h4 {[%clk 0:03:01]}  Nfd7 {[%clk 0:02:44]} 8. Bd3 {[%clk 0:02:54]}  Bxd3 {[%clk 0:02:43]} 9. cxd3 {[%clk 0:02:54]}  Bd6 {[%clk 0:02:43]} 10. Nge2 {[%clk 0:02:54]}  Nc6 {[%clk 0:02:43]} 11. Qd2 {[%clk 0:02:49]}  Nb6 {[%clk 0:02:39]} 12. O-O-O {[%clk 0:02:48]}  e5 {[%clk 0:02:39]} 13. dxe5 {[%clk 0:02:46]}  Nxe5 {[%clk 0:02:40]} 14. Bxe5 {[%clk 0:02:32]}  Bxe5 {[%clk 0:02:41]} 15. f4 {[%clk 0:02:32]}  Bd6 {[%clk 0:02:39]} 16. Nd4 {[%clk 0:02:28]}  Qd7 {[%clk 0:02:36]} 17. Nf5 {[%clk 0:02:17]}  g6 {[%clk 0:02:36]} 18. Nxd6+ {[%clk 0:02:16]}  Qxd6 {[%clk 0:02:37]} 19. Nb5 {[%clk 0:02:12]}  Qd7 {[%clk 0:02:35]} 20. Qc3 {[%clk 0:02:07]}  O-O {[%clk 0:02:34]} 21. Nd4 {[%clk 0:01:52]}  c5 {[%clk 0:02:33]} 22. Nf3 {[%clk 0:01:51]}  d4 {[%clk 0:02:34]} 23. exd4 {[%clk 0:01:48]}  cxd4 {[%clk 0:02:35]} 24. Qxd4 {[%clk 0:01:47]}  Qc6+ {[%clk 0:02:35]} 25. Kb1 {[%clk 0:01:40]}  Qxf3 {[%clk 0:02:36]} 26. h5 {[%clk 0:01:15]}  Rad8 {[%clk 0:02:32]} 0-1


[Site "https://www.chess.com"]

[Event "Titled Tuesday Blitz June 13 Early 2023"]
[White "Terry, Renato"]
[Black "RobertDowneyJr0111"]
[WhiteFideId "3803457"]
[WhiteElo "2575"]
[BlackElo "2592"]
[Result "1-0"]
[Round "2"]
[TimeControl "180+2"]
[Date "2023.06.13"]
[WhiteClock "0:00:21"]
[BlackClock "0:00:02"]
[Board "38"]

1. e4 {[%clk 0:02:54]}  e5 {[%clk 0:02:59]} 2. Nf3 {[%clk 0:02:54]}  Nc6 {[%clk 0:02:59]} 3. c3 {[%clk 0:02:55]}  Nf6 {[%clk 0:02:59]} 4. d4 {[%clk 0:02:54]}  d6 {[%clk 0:02:58]} 5. Bb5 {[%clk 0:02:54]}  Bd7 {[%clk 0:02:57]} 6. O-O {[%clk 0:02:54]}  Be7 {[%clk 0:02:57]} 7. Re1 {[%clk 0:02:54]}  O-O {[%clk 0:02:57]} 8. Ba4 {[%clk 0:02:51]}  a6 {[%clk 0:02:56]} 9. Nbd2 {[%clk 0:02:50]}  Re8 {[%clk 0:02:56]} 10. Nf1 {[%clk 0:02:50]}  Bf8 {[%clk 0:02:56]} 11. Ng3 {[%clk 0:02:50]}  g6 {[%clk 0:02:57]} 12. d5 {[%clk 0:02:45]}  Nb8 {[%clk 0:02:53]} 13. Bc2 {[%clk 0:02:42]}  c6 {[%clk 0:02:51]} 14. c4 {[%clk 0:02:42]}  b5 {[%clk 0:02:48]} 15. b3 {[%clk 0:02:38]}  a5 {[%clk 0:02:48]} 16. Bd3 {[%clk 0:02:17]}  bxc4 {[%clk 0:02:44]} 17. bxc4 {[%clk 0:02:16]}  Na6 {[%clk 0:02:45]} 18. Bd2 {[%clk 0:02:07]}  Nc5 {[%clk 0:02:44]} 19. Bc2 {[%clk 0:02:06]}  cxd5 {[%clk 0:02:41]} 20. cxd5 {[%clk 0:02:07]}  Bb5 {[%clk 0:02:37]} 21. Rb1 {[%clk 0:01:55]}  Qd7 {[%clk 0:02:36]} 22. Be3 {[%clk 0:01:48]}  Rec8 {[%clk 0:02:31]} 23. h3 {[%clk 0:01:42]}  Na4 {[%clk 0:02:24]} 24. Qd2 {[%clk 0:01:39]}  Nc3 {[%clk 0:02:04]} 25. Rb2 {[%clk 0:01:39]}  Ba4 {[%clk 0:01:58]} 26. Qd3 {[%clk 0:01:31]}  Bb5 {[%clk 0:01:48]} 27. Qd2 {[%clk 0:01:31]}  Ba4 {[%clk 0:01:48]} 28. Bg5 {[%clk 0:01:32]}  Be7 {[%clk 0:01:36]} 29. Re3 {[%clk 0:01:31]}  Bxc2 {[%clk 0:01:22]} 30. Rxc2 {[%clk 0:01:32]}  Na4 {[%clk 0:01:20]} 31. Ra3 {[%clk 0:01:22]}  Nc5 {[%clk 0:01:15]} 32. Bxf6 {[%clk 0:01:19]}  Bxf6 {[%clk 0:01:16]} 33. Rxa5 {[%clk 0:01:19]}  Rxa5 {[%clk 0:01:15]} 34. Qxa5 {[%clk 0:01:20]}  Qb7 {[%clk 0:01:16]} 35. Qe1 {[%clk 0:01:18]}  Ra8 {[%clk 0:01:14]} 36. Nd2 {[%clk 0:01:08]}  Qb4 {[%clk 0:01:05]} 37. Qe3 {[%clk 0:01:03]}  Ra3 {[%clk 0:00:51]} 38. Qe2 {[%clk 0:00:57]}  Nd3 {[%clk 0:00:39]} 39. Nb3 {[%clk 0:00:57]}  Nf4 {[%clk 0:00:38]} 40. Qd2 {[%clk 0:00:56]}  Qb5 {[%clk 0:00:30]} 41. Ne2 {[%clk 0:00:56]}  Bg5 {[%clk 0:00:20]} 42. Nxf4 {[%clk 0:00:54]}  Bxf4 {[%clk 0:00:20]} 43. Qe2 {[%clk 0:00:55]}  Qa4 {[%clk 0:00:14]} 44. g3 {[%clk 0:00:52]}  Bg5 {[%clk 0:00:14]} 45. Kg2 {[%clk 0:00:51]}  Kg7 {[%clk 0:00:15]} 46. h4 {[%clk 0:00:49]}  Bd8 {[%clk 0:00:15]} 47. Nc1 {[%clk 0:00:34]}  Bb6 {[%clk 0:00:14]} 48. Qc4 {[%clk 0:00:29]}  Qa5 {[%clk 0:00:11]} 49. Nb3 {[%clk 0:00:25]}  Qa7 {[%clk 0:00:10]} 50. Qc6 {[%clk 0:00:22]}  Bd4 {[%clk 0:00:05]} 51. Qxd6 {[%clk 0:00:20]}  Rxa2 {[%clk 0:00:02]} 52. Nxd4 {[%clk 0:00:20]}  exd4 {[%clk 0:00:01]} 53. Rxa2 {[%clk 0:00:20]}  Qxa2 {[%clk 0:00:02]} 54. Qe5+ {[%clk 0:00:20]}  Kg8 {[%clk 0:00:02]} 55. Qxd4 {[%clk 0:00:21]} 1-0


[Site "https://www.chess.com"]

[Event "Titled Tuesday Blitz June 13 Early 2023"]
[White "Becerra, Juan David"]
[Black "Ahmadzada, Ahmad"]
[WhiteFideId "4404998"]
[BlackFideId "13413007"]
[WhiteElo "2304"]
[BlackElo "2388"]
[Result "0-1"]
[Round "2"]
[TimeControl "180+2"]
[Date "2023.06.13"]
[WhiteClock "0:00:14"]
[BlackClock "0:01:13"]
[Board "39"]

1. e4 {[%clk 0:02:58]}  d5 {[%clk 0:02:58]} 2. exd5 {[%clk 0:02:57]}  Qxd5 {[%clk 0:02:59]} 3. Nc3 {[%clk 0:02:55]}  Qd8 {[%clk 0:02:59]} 4. d4 {[%clk 0:02:50]}  Nf6 {[%clk 0:03:00]} 5. Bc4 {[%clk 0:02:39]}  Bg4 {[%clk 0:02:56]} 6. Nge2 {[%clk 0:02:33]}  e6 {[%clk 0:02:53]} 7. f3 {[%clk 0:02:24]}  Bh5 {[%clk 0:02:51]} 8. Nf4 {[%clk 0:02:22]}  Bg6 {[%clk 0:02:52]} 9. Qe2 {[%clk 0:02:16]}  Bd6 {[%clk 0:02:40]} 10. d5 {[%clk 0:01:42]}  e5 {[%clk 0:02:40]} 11. Nxg6 {[%clk 0:01:41]}  hxg6 {[%clk 0:02:40]} 12. Bg5 {[%clk 0:01:33]}  Nbd7 {[%clk 0:02:39]} 13. Ne4 {[%clk 0:01:33]}  Be7 {[%clk 0:02:31]} 14. Bxf6 {[%clk 0:01:27]}  Nxf6 {[%clk 0:02:30]} 15. O-O-O {[%clk 0:01:26]}  Nxe4 {[%clk 0:02:17]} 16. Bb5+ {[%clk 0:01:15]}  Kf8 {[%clk 0:02:17]} 17. fxe4 {[%clk 0:01:13]}  Bd6 {[%clk 0:02:18]} 18. Rdf1 {[%clk 0:01:11]}  Qg5+ {[%clk 0:02:18]} 19. Kb1 {[%clk 0:01:10]}  Ke7 {[%clk 0:02:03]} 20. Qf3 {[%clk 0:00:56]}  Raf8 {[%clk 0:02:01]} 21. g3 {[%clk 0:00:53]}  f5 {[%clk 0:02:01]} 22. Qe2 {[%clk 0:00:33]}  Rh3 {[%clk 0:01:58]} 23. Bd3 {[%clk 0:00:32]}  Kd8 {[%clk 0:01:46]} 24. Qg2 {[%clk 0:00:32]}  Rhh8 {[%clk 0:01:23]} 25. h4 {[%clk 0:00:31]}  Qg4 {[%clk 0:01:23]} 26. Be2 {[%clk 0:00:28]}  Qxe4 {[%clk 0:01:23]} 27. Qxe4 {[%clk 0:00:28]}  fxe4 {[%clk 0:01:24]} 28. Rxf8+ {[%clk 0:00:28]}  Rxf8 {[%clk 0:01:13]} 29. Rf1 {[%clk 0:00:27]}  Rf6 {[%clk 0:01:14]} 30. Bg4 {[%clk 0:00:14]}  Rxf1+ {[%clk 0:01:13]} 0-1


[Site "https://www.chess.com"]

[Event "Titled Tuesday Blitz June 13 Early 2023"]
[White "Mortazavi, Ali"]
[Black "Arutinian, David"]
[WhiteFideId "401323"]
[BlackFideId "13601741"]
[WhiteElo "2339"]
[BlackElo "2525"]
[Result "0-1"]
[Round "2"]
[TimeControl "180+2"]
[Date "2023.06.13"]
[WhiteClock "0:00:18"]
[BlackClock "0:01:04"]
[Board "41"]

1. Nf3 {[%clk 0:03:00]}  Nf6 {[%clk 0:02:59]} 2. g3 {[%clk 0:03:01]}  b5 {[%clk 0:02:58]} 3. Bg2 {[%clk 0:03:02]}  Bb7 {[%clk 0:02:59]} 4. O-O {[%clk 0:03:03]}  e6 {[%clk 0:02:59]} 5. c3 {[%clk 0:03:03]}  c5 {[%clk 0:02:53]} 6. a4 {[%clk 0:03:02]}  b4 {[%clk 0:02:53]} 7. d4 {[%clk 0:02:58]}  Na6 {[%clk 0:02:52]} 8. Bg5 {[%clk 0:02:48]}  Be7 {[%clk 0:02:51]} 9. dxc5 {[%clk 0:02:48]}  Bxc5 {[%clk 0:02:45]} 10. cxb4 {[%clk 0:02:44]}  Nxb4 {[%clk 0:02:44]} 11. Nc3 {[%clk 0:02:41]}  O-O {[%clk 0:02:43]} 12. Rc1 {[%clk 0:02:39]}  Be7 {[%clk 0:02:35]} 13. Nb5 {[%clk 0:02:29]}  a6 {[%clk 0:02:18]} 14. Nd6 {[%clk 0:02:15]}  Bd5 {[%clk 0:02:18]} 15. Nc4 {[%clk 0:02:13]}  Rc8 {[%clk 0:02:17]} 16. Ne3 {[%clk 0:01:59]}  Rxc1 {[%clk 0:02:15]} 17. Qxc1 {[%clk 0:02:00]}  Bc6 {[%clk 0:02:04]} 18. Ne5 {[%clk 0:01:46]}  Bxg2 {[%clk 0:02:03]} 19. Nxg2 {[%clk 0:01:46]}  h6 {[%clk 0:02:03]} 20. Bd2 {[%clk 0:01:41]}  Qa5 {[%clk 0:02:01]} 21. b3 {[%clk 0:01:30]}  Qxe5 {[%clk 0:01:59]} 22. Nf4 {[%clk 0:01:22]}  Nbd5 {[%clk 0:01:50]} 23. Nxd5 {[%clk 0:01:16]}  Qxd5 {[%clk 0:01:49]} 24. Rd1 {[%clk 0:01:11]}  Qxb3 {[%clk 0:01:47]} 25. a5 {[%clk 0:01:11]}  Qb5 {[%clk 0:01:44]} 26. Re1 {[%clk 0:00:53]}  Qh5 {[%clk 0:01:34]} 27. Kg2 {[%clk 0:00:50]}  Qd5+ {[%clk 0:01:31]} 28. f3 {[%clk 0:00:50]}  Qb7 {[%clk 0:01:31]} 29. Rd1 {[%clk 0:00:47]}  Rc8 {[%clk 0:01:31]} 30. Qa1 {[%clk 0:00:43]}  d5 {[%clk 0:01:31]} 31. Qe5 {[%clk 0:00:39]}  Nd7 {[%clk 0:01:25]} 32. Qh5 {[%clk 0:00:37]}  Qb5 {[%clk 0:01:21]} 33. Kf1 {[%clk 0:00:35]}  d4 {[%clk 0:01:21]} 34. Qxb5 {[%clk 0:00:33]}  axb5 {[%clk 0:01:21]} 35. Rb1 {[%clk 0:00:34]}  Rb8 {[%clk 0:01:18]} 36. a6 {[%clk 0:00:27]}  b4 {[%clk 0:01:16]} 37. a7 {[%clk 0:00:26]}  Ra8 {[%clk 0:01:17]} 38. Bxb4 {[%clk 0:00:26]}  Bxb4 {[%clk 0:01:15]} 39. Rxb4 {[%clk 0:00:27]}  Rxa7 {[%clk 0:01:16]} 40. Rxd4 {[%clk 0:00:28]}  g6 {[%clk 0:01:15]} 41. Kf2 {[%clk 0:00:28]}  Kg7 {[%clk 0:01:16]} 42. h4 {[%clk 0:00:29]}  h5 {[%clk 0:01:15]} 43. Rb4 {[%clk 0:00:29]}  Nf6 {[%clk 0:01:15]} 44. Rb5 {[%clk 0:00:28]}  Ra2 {[%clk 0:01:15]} 45. Rb3 {[%clk 0:00:25]}  Nd5 {[%clk 0:01:15]} 46. Rd3 {[%clk 0:00:25]}  Rc2 {[%clk 0:01:15]} 47. Rb3 {[%clk 0:00:25]}  Nc3 {[%clk 0:01:15]} 48. Ke3 {[%clk 0:00:24]}  Nxe2 {[%clk 0:01:15]} 49. Kd3 {[%clk 0:00:25]}  Ra2 {[%clk 0:01:15]} 50. Rb7 {[%clk 0:00:24]}  Nxg3 {[%clk 0:01:14]} 51. Ke3 {[%clk 0:00:25]}  Nf5+ {[%clk 0:01:15]} 52. Kf4 {[%clk 0:00:25]}  Nxh4 {[%clk 0:01:12]} 53. Kg3 {[%clk 0:00:26]}  Nf5+ {[%clk 0:01:11]} 54. Kh3 {[%clk 0:00:27]}  g5 {[%clk 0:01:08]} 55. Rb4 {[%clk 0:00:23]}  Kg6 {[%clk 0:01:08]} 56. Rb5 {[%clk 0:00:23]}  Rf2 {[%clk 0:01:07]} 57. Rb3 {[%clk 0:00:22]}  Rxf3+ {[%clk 0:01:03]} 58. Rxf3 {[%clk 0:00:18]}  g4+ {[%clk 0:01:04]} 0-1


[Site "https://www.chess.com"]

[Event "Titled Tuesday Blitz June 13 Early 2023"]
[White "Gorovets, Andrey"]
[Black "Spata, German"]
[WhiteFideId "13504037"]
[BlackFideId "113026"]
[WhiteElo "2459"]
[BlackElo "2260"]
[Result "1-0"]
[Round "2"]
[TimeControl "180+2"]
[Date "2023.06.13"]
[WhiteClock "0:00:07"]
[BlackClock "0:00:00"]
[Board "42"]

1. c4 {[%clk 0:02:57]}  c5 {[%clk 0:02:55]} 2. Nf3 {[%clk 0:02:57]}  g6 {[%clk 0:02:55]} 3. d4 {[%clk 0:02:56]}  cxd4 {[%clk 0:02:55]} 4. Nxd4 {[%clk 0:02:56]}  Bg7 {[%clk 0:02:55]} 5. e4 {[%clk 0:02:57]}  Nc6 {[%clk 0:02:53]} 6. Be3 {[%clk 0:02:57]}  d6 {[%clk 0:02:52]} 7. Nc3 {[%clk 0:02:57]}  Nf6 {[%clk 0:02:52]} 8. Be2 {[%clk 0:02:57]}  O-O {[%clk 0:02:52]} 9. O-O {[%clk 0:02:57]}  Bd7 {[%clk 0:02:51]} 10. Qd2 {[%clk 0:02:54]}  Nxd4 {[%clk 0:02:51]} 11. Bxd4 {[%clk 0:02:55]}  Bc6 {[%clk 0:02:52]} 12. f3 {[%clk 0:02:56]}  a5 {[%clk 0:02:53]} 13. b3 {[%clk 0:02:56]}  Nd7 {[%clk 0:02:53]} 14. Be3 {[%clk 0:02:56]}  Nc5 {[%clk 0:02:54]} 15. Rab1 {[%clk 0:02:56]}  Qb6 {[%clk 0:02:54]} 16. Rfc1 {[%clk 0:02:55]}  Rfc8 {[%clk 0:02:55]} 17. Rc2 {[%clk 0:02:53]}  Qd8 {[%clk 0:02:54]} 18. Bf1 {[%clk 0:02:38]}  h5 {[%clk 0:02:52]} 19. Ne2 {[%clk 0:02:31]}  Kh7 {[%clk 0:02:38]} 20. Nd4 {[%clk 0:02:31]}  Qh8 {[%clk 0:02:27]} 21. Rd1 {[%clk 0:02:09]}  Bd7 {[%clk 0:02:25]} 22. Rcc1 {[%clk 0:02:03]}  Ne6 {[%clk 0:02:23]} 23. Ne2 {[%clk 0:02:00]}  Bb2 {[%clk 0:02:18]} 24. Rc2 {[%clk 0:01:59]}  Bg7 {[%clk 0:02:14]} 25. Nc3 {[%clk 0:02:00]}  Bc6 {[%clk 0:02:11]} 26. Nd5 {[%clk 0:01:58]}  Bxd5 {[%clk 0:02:10]} 27. exd5 {[%clk 0:01:56]}  Nc5 {[%clk 0:02:06]} 28. Re1 {[%clk 0:01:51]}  Bf6 {[%clk 0:02:05]} 29. g3 {[%clk 0:01:50]}  Qd8 {[%clk 0:02:01]} 30. Bh3 {[%clk 0:01:44]}  Rcb8 {[%clk 0:01:59]} 31. Qe2 {[%clk 0:01:40]}  Qb6 {[%clk 0:01:57]} 32. Rb1 {[%clk 0:01:33]}  Qb4 {[%clk 0:01:54]} 33. Bd2 {[%clk 0:01:31]}  Qb6 {[%clk 0:01:52]} 34. Kh1 {[%clk 0:01:28]}  Kg7 {[%clk 0:01:46]} 35. Be3 {[%clk 0:01:21]}  Qb4 {[%clk 0:01:44]} 36. Bd2 {[%clk 0:01:20]}  Qb6 {[%clk 0:01:44]} 37. Rcc1 {[%clk 0:01:10]}  Na6 {[%clk 0:01:44]} 38. a3 {[%clk 0:01:04]}  Nc5 {[%clk 0:01:27]} 39. Qe3 {[%clk 0:01:02]}  Qc7 {[%clk 0:01:21]} 40. b4 {[%clk 0:00:59]}  axb4 {[%clk 0:01:21]} 41. axb4 {[%clk 0:01:00]}  Nd7 {[%clk 0:01:18]} 42. c5 {[%clk 0:00:55]}  dxc5 {[%clk 0:01:14]} 43. bxc5 {[%clk 0:00:55]}  Ne5 {[%clk 0:01:01]} 44. Bg2 {[%clk 0:00:39]}  Ra4 {[%clk 0:00:52]} 45. Qe2 {[%clk 0:00:35]}  Ra2 {[%clk 0:00:48]} 46. f4 {[%clk 0:00:36]}  Ng4 {[%clk 0:00:47]} 47. h3 {[%clk 0:00:35]}  Nh6 {[%clk 0:00:43]} 48. Qd3 {[%clk 0:00:34]}  Nf5 {[%clk 0:00:38]} 49. Be1 {[%clk 0:00:33]}  Rba8 {[%clk 0:00:29]} 50. d6 {[%clk 0:00:29]}  exd6 {[%clk 0:00:25]} 51. Rxb7 {[%clk 0:00:29]}  Qd8 {[%clk 0:00:15]} 52. Bd5 {[%clk 0:00:19]}  R8a7 {[%clk 0:00:11]} 53. c6 {[%clk 0:00:17]}  Rxb7 {[%clk 0:00:08]} 54. cxb7 {[%clk 0:00:18]}  Qb6 {[%clk 0:00:07]} 55. Bxa2 {[%clk 0:00:17]}  Qxb7+ {[%clk 0:00:05]} 56. Bd5 {[%clk 0:00:15]}  Qb2 {[%clk 0:00:04]} 57. Rc2 {[%clk 0:00:15]}  Qb1 {[%clk 0:00:04]} 58. Qd2 {[%clk 0:00:10]}  Nxg3+ {[%clk 0:00:03]} 59. Kg2 {[%clk 0:00:10]}  Nf5 {[%clk 0:00:03]} 60. Bf2 {[%clk 0:00:10]}  Qa1 {[%clk 0:00:02]} 61. Be4 {[%clk 0:00:09]}  Nd4 {[%clk 0:00:00]} 62. Rc1 {[%clk 0:00:07]} 1-0


[Site "https://www.chess.com"]